[Event "*** Titled Tuesday Blitz"]
[Site "Chess.com"]
[Date "2020.04.14"]
[Round "4"]
[White "Monmoransy"]
[Black "Casablanca"]
[Result "1/2-1/2"]
[WhiteElo "2610"]
[BlackElo "2358"]
[TimeControl "180+1"]
[EndTime "10:40:04 PDT"]
[Termination "Game drawn by repetition"]

1. e4 {[%clk 0:03:00.9]} 1... c5 {[%clk 0:02:58.3]} 2. Nf3 {[%clk 0:03:00.7]}
2... d6 {[%clk 0:02:58.3]} 3. d4 {[%clk 0:03:00.4]} 3... cxd4 {[%clk 0:02:54.3]}
4. Qxd4 {[%clk 0:03:01.3]} 4... Nc6 {[%clk 0:02:51.5]} 5. Bb5 {[%clk 0:03:00.9]}
5... Bd7 {[%clk 0:02:51.5]} 6. Qd3 {[%clk 0:03:01]} 6... Nf6 {[%clk 0:02:51]} 7.
c4 {[%clk 0:03:01]} 7... g6 {[%clk 0:02:44.3]} 8. Nc3 {[%clk 0:03:00.5]} 8... a6
{[%clk 0:02:44.2]} 9. Bxc6 {[%clk 0:02:59.8]} 9... Bxc6 {[%clk 0:02:45.1]} 10.
Nd4 {[%clk 0:02:58.3]} 10... Bg7 {[%clk 0:02:43.7]} 11. O-O {[%clk 0:02:57.9]}
11... O-O {[%clk 0:02:43.4]} 12. f3 {[%clk 0:02:54.7]} 12... Nd7 {[%clk
0:02:42.4]} 13. Be3 {[%clk 0:02:53.5]} 13... Rc8 {[%clk 0:02:42.5]} 14. b3
{[%clk 0:02:52.4]} 14... Qa5 {[%clk 0:02:42.3]} 15. Rac1 {[%clk 0:02:50.7]}
15... Nc5 {[%clk 0:01:59.3]} 16. Qd2 {[%clk 0:02:49.3]} 16... Rfe8 {[%clk
0:01:51.9]} 17. Rfd1 {[%clk 0:02:48.3]} 17... Ne6 {[%clk 0:01:50.3]} 18. a4
{[%clk 0:02:28.6]} 18... Nxd4 {[%clk 0:01:23.4]} 19. Bxd4 {[%clk 0:02:27.7]}
19... Bxd4+ {[%clk 0:01:23.4]} 20. Qxd4 {[%clk 0:02:27.3]} 20... Qc5 {[%clk
0:01:24.1]} 21. Kf2 {[%clk 0:02:18.3]} 21... Red8 {[%clk 0:01:14.1]} 22. h3
{[%clk 0:02:04.8]} 22... h5 {[%clk 0:01:08.5]} 23. g4 {[%clk 0:02:01]} 23...
hxg4 {[%clk 0:01:08.1]} 24. hxg4 {[%clk 0:02:00.9]} 24... b6 {[%clk 0:01:01.5]}
25. Qe3 {[%clk 0:01:50.6]} 25... f6 {[%clk 0:00:49.4]} 26. Rc2 {[%clk
0:01:48.8]} 26... g5 {[%clk 0:00:48.2]} 27. Nd5 {[%clk 0:01:41.5]} 27... Bxd5
{[%clk 0:00:42.2]} 28. Rxd5 {[%clk 0:01:35.1]} 28... Qxe3+ {[%clk 0:00:41.9]}
29. Kxe3 {[%clk 0:01:34.5]} 29... Rc5 {[%clk 0:00:42.4]} 30. b4 {[%clk
0:01:30.5]} 30... Rxd5 {[%clk 0:00:41.9]} 31. cxd5 {[%clk 0:01:29.5]} 31... Kf7
{[%clk 0:00:30.1]} 32. Rc6 {[%clk 0:01:29.1]} 32... Rb8 {[%clk 0:00:30.2]} 33.
Kd4 {[%clk 0:01:24.9]} 33... a5 {[%clk 0:00:26.9]} 34. Kc4 {[%clk 0:01:20.7]}
34... Ke8 {[%clk 0:00:22.2]} 35. Kb5 {[%clk 0:01:19.2]} 35... Kd7 {[%clk
0:00:22.4]} 36. Rc4 {[%clk 0:01:12.2]} 36... axb4 {[%clk 0:00:17.8]} 37. Kxb4
{[%clk 0:01:10.2]} 37... Ra8 {[%clk 0:00:11.9]} 38. Rc6 {[%clk 0:01:08.4]} 38...
Ra6 {[%clk 0:00:12.1]} 39. Kb3 {[%clk 0:01:03.3]} 39... Kd8 {[%clk 0:00:11.2]}
40. Ka3 {[%clk 0:01:02.5]} 40... Kd7 {[%clk 0:00:11.6]} 41. Kb4 {[%clk
0:01:02.7]} 41... Kd8 {[%clk 0:00:11.9]} 42. Rc2 {[%clk 0:00:59.9]} 42... Kd7
{[%clk 0:00:12]} 43. Rc4 {[%clk 0:00:58]} 43... Ra5 {[%clk 0:00:10.9]} 44. Rc1
{[%clk 0:00:54.3]} 44... Rc5 {[%clk 0:00:10.4]} 45. Rh1 {[%clk 0:00:50.1]} 45...
Rc2 {[%clk 0:00:08.1]} 46. Kb5 {[%clk 0:00:46.8]} 46... Rb2+ {[%clk 0:00:08.2]}
47. Ka6 {[%clk 0:00:46.4]} 47... Rb4 {[%clk 0:00:08.4]} 48. Ra1 {[%clk
0:00:41.5]} 48... Rb3 {[%clk 0:00:08.7]} 49. Rf1 {[%clk 0:00:35.2]} 49... Rb4
{[%clk 0:00:07.4]} 50. Ra1 {[%clk 0:00:32.1]} 50... Rb3 {[%clk 0:00:07.4]} 51.
Rf1 {[%clk 0:00:27.3]} 51... Rb4 {[%clk 0:00:07.6]} 52. Ra1 {[%clk 0:00:24.4]}
1/2-1/2

[Event "*** Titled Tuesday Blitz"]
[Site "Chess.com"]
[Date "2020.04.14"]
[Round "4"]
[White "picturesquecheck"]
[Black "Andro2"]
[Result "0-1"]
[WhiteElo "2208"]
[BlackElo "2422"]
[TimeControl "180+1"]
[EndTime "10:40:04 PDT"]
[Termination "Andro2 won by checkmate"]

1. e4 {[%clk 0:03:00.9]} 1... c5 {[%clk 0:02:58.9]} 2. Nf3 {[%clk 0:03:00.9]}
2... d6 {[%clk 0:02:58.9]} 3. d4 {[%clk 0:03:01.4]} 3... cxd4 {[%clk 0:02:59.2]}
4. Nxd4 {[%clk 0:03:02.3]} 4... Nf6 {[%clk 0:02:58.8]} 5. Nc3 {[%clk 0:03:01.8]}
5... a6 {[%clk 0:02:59.1]} 6. Be3 {[%clk 0:03:00.1]} 6... e5 {[%clk 0:02:57.8]}
7. Nb3 {[%clk 0:03:00.1]} 7... Be7 {[%clk 0:02:58.3]} 8. f3 {[%clk 0:03:00.4]}
8... Be6 {[%clk 0:02:58.6]} 9. Qd2 {[%clk 0:03:00.8]} 9... Qc7 {[%clk
0:02:57.8]} 10. O-O-O {[%clk 0:03:00.7]} 10... Nbd7 {[%clk 0:02:58.3]} 11. g4
{[%clk 0:03:01.3]} 11... b5 {[%clk 0:02:56.5]} 12. g5 {[%clk 0:03:01.6]} 12...
Nh5 {[%clk 0:02:47.8]} 13. Nd5 {[%clk 0:03:01.6]} 13... Bxd5 {[%clk 0:02:47.9]}
14. exd5 {[%clk 0:03:02.5]} 14... O-O {[%clk 0:02:43.1]} 15. Na5 {[%clk
0:03:00.7]} 15... f5 {[%clk 0:01:51.2]} 16. gxf6 {[%clk 0:02:45.9]} 16... Ndxf6
{[%clk 0:01:47.9]} 17. Nc6 {[%clk 0:02:41.8]} 17... Kh8 {[%clk 0:01:32.7]} 18.
Kb1 {[%clk 0:02:23.4]} 18... Rae8 {[%clk 0:01:20]} 19. c4 {[%clk 0:02:20.4]}
19... bxc4 {[%clk 0:01:13.6]} 20. Bxc4 {[%clk 0:02:19.9]} 20... Nd7 {[%clk
0:01:13.6]} 21. Bxa6 {[%clk 0:02:09.4]} 21... Nf4 {[%clk 0:01:01.9]} 22. Bb5
{[%clk 0:02:04.9]} 22... Bf6 {[%clk 0:00:52.4]} 23. Rc1 {[%clk 0:01:55.5]} 23...
Qb7 {[%clk 0:00:51.9]} 24. a4 {[%clk 0:01:52]} 24... Nb6 {[%clk 0:00:46.8]} 25.
Bxb6 {[%clk 0:01:40.8]} 25... Qxb6 {[%clk 0:00:46.7]} 26. Rhe1 {[%clk
0:01:35.1]} 26... Bg5 {[%clk 0:00:43.7]} 27. Rg1 {[%clk 0:01:21.3]} 27... Bh6
{[%clk 0:00:41.4]} 28. Qa5 {[%clk 0:01:06.1]} 28... Qf2 {[%clk 0:00:27.1]} 29.
Rcf1 {[%clk 0:00:52.5]} 29... Qe3 {[%clk 0:00:19.7]} 30. Nb4 {[%clk 0:00:30.4]}
30... Ra8 {[%clk 0:00:18.6]} 31. Qc7 {[%clk 0:00:29.2]} 31... Qd4 {[%clk
0:00:16.3]} 32. Nc2 {[%clk 0:00:17.6]} 32... Qxd5 {[%clk 0:00:16.2]} 33. Bc6
{[%clk 0:00:17.8]} 33... Qc5 {[%clk 0:00:13.8]} 34. Qb7 {[%clk 0:00:08.1]} 34...
Rab8 {[%clk 0:00:13.4]} 35. Qa6 {[%clk 0:00:08.2]} 35... Rfc8 {[%clk 0:00:12.2]}
36. Bb5 {[%clk 0:00:07.1]} 36... Qxc2+ {[%clk 0:00:10.8]} 37. Ka1 {[%clk
0:00:06.7]} 37... Nd5 {[%clk 0:00:10.1]} 38. Rc1 {[%clk 0:00:02.6]} 38... Bxc1
{[%clk 0:00:06.4]} 39. Qa7 {[%clk 0:00:01.7]} 39... Qxb2# {[%clk 0:00:05.9]} 0-1

[Event "*** Titled Tuesday Blitz"]
[Site "Chess.com"]
[Date "2020.04.14"]
[Round "4"]
[White "Valuebet2000"]
[Black "vugarrasulov"]
[Result "1/2-1/2"]
[WhiteElo "2550"]
[BlackElo "2739"]
[TimeControl "180+1"]
[EndTime "10:40:05 PDT"]
[Termination "Game drawn by repetition"]

1. d4 {[%clk 0:03:00.9]} 1... Nf6 {[%clk 0:02:59.4]} 2. c4 {[%clk 0:03:00.6]}
2... g6 {[%clk 0:02:59.2]} 3. Nc3 {[%clk 0:03:00.9]} 3... Bg7 {[%clk 0:02:59.4]}
4. e4 {[%clk 0:02:54.9]} 4... d6 {[%clk 0:02:59.9]} 5. Be2 {[%clk 0:02:54.9]}
5... O-O {[%clk 0:02:59.5]} 6. Bg5 {[%clk 0:02:55]} 6... Na6 {[%clk 0:02:56.6]}
7. Qd2 {[%clk 0:02:50.8]} 7... Qe8 {[%clk 0:02:47.2]} 8. Bf3 {[%clk 0:02:05.6]}
8... c5 {[%clk 0:02:37.8]} 9. Nge2 {[%clk 0:02:04.8]} 9... cxd4 {[%clk
0:02:32.9]} 10. Nxd4 {[%clk 0:02:05.7]} 10... Nc5 {[%clk 0:02:27]} 11. O-O
{[%clk 0:02:04.8]} 11... Ne6 {[%clk 0:02:26.4]} 12. Be3 {[%clk 0:01:59.5]} 12...
Qd8 {[%clk 0:02:21]} 13. Nxe6 {[%clk 0:01:48.6]} 13... Bxe6 {[%clk 0:02:20.6]}
14. b3 {[%clk 0:01:47.3]} 14... Nd7 {[%clk 0:02:19.7]} 15. Bd4 {[%clk
0:01:46.7]} 15... Qa5 {[%clk 0:02:14]} 16. Bxg7 {[%clk 0:01:45.3]} 16... Kxg7
{[%clk 0:02:14.9]} 17. Be2 {[%clk 0:01:44]} 17... Rfc8 {[%clk 0:02:10.9]} 18.
Rac1 {[%clk 0:01:37.5]} 18... a6 {[%clk 0:02:09.7]} 19. f4 {[%clk 0:01:32]}
19... f6 {[%clk 0:02:09]} 20. Qb2 {[%clk 0:01:07.9]} 20... Rc7 {[%clk
0:01:44.5]} 21. Kh1 {[%clk 0:00:36.8]} 21... Rac8 {[%clk 0:01:42.8]} 22. a4
{[%clk 0:00:34.8]} 22... Qc5 {[%clk 0:01:35.1]} 23. Rfd1 {[%clk 0:00:31.3]}
23... Qe3 {[%clk 0:01:32.4]} 24. Qd2 {[%clk 0:00:31.4]} 24... Qxd2 {[%clk
0:01:28.2]} 25. Rxd2 {[%clk 0:00:32.3]} 25... Nc5 {[%clk 0:01:28.1]} 26. Rb2
{[%clk 0:00:27]} 26... f5 {[%clk 0:01:26]} 27. exf5 {[%clk 0:00:25.9]} 27...
gxf5 {[%clk 0:01:26.9]} 28. Rd1 {[%clk 0:00:21.4]} 28... Ne4 {[%clk 0:01:18.9]}
29. Nxe4 {[%clk 0:00:19]} 29... fxe4 {[%clk 0:01:19.8]} 30. g4 {[%clk
0:00:16.2]} 30... Rc5 {[%clk 0:01:07.3]} 31. Rd4 {[%clk 0:00:14.8]} 31... Bd7
{[%clk 0:00:54.1]} 32. Kg1 {[%clk 0:00:13.3]} 32... e5 {[%clk 0:00:46]} 33. fxe5
{[%clk 0:00:12.7]} 33... Rxe5 {[%clk 0:00:45.4]} 34. Bf1 {[%clk 0:00:12.6]}
34... e3 {[%clk 0:00:43.6]} 35. Re2 {[%clk 0:00:11.9]} 35... Bc6 {[%clk
0:00:42.8]} 36. Bg2 {[%clk 0:00:09.7]} 36... b5 {[%clk 0:00:40.5]} 37. axb5
{[%clk 0:00:09.4]} 37... axb5 {[%clk 0:00:41.4]} 38. Bxc6 {[%clk 0:00:09.6]}
38... Rxc6 {[%clk 0:00:41.7]} 39. cxb5 {[%clk 0:00:09.5]} 39... Rc3 {[%clk
0:00:38.9]} 40. Rxd6 {[%clk 0:00:07.7]} 40... Rxb3 {[%clk 0:00:39.1]} 41. Kg2
{[%clk 0:00:07.3]} 41... Rbxb5 {[%clk 0:00:38.7]} 42. Rd3 {[%clk 0:00:07]} 42...
Rb4 {[%clk 0:00:37.8]} 43. h3 {[%clk 0:00:06.5]} 43... Rb1 {[%clk 0:00:27.1]}
44. Rdxe3 {[%clk 0:00:06.2]} 44... Rc5 {[%clk 0:00:27.4]} 45. Re7+ {[%clk
0:00:06.2]} 45... Kg6 {[%clk 0:00:27.2]} 46. R7e6+ {[%clk 0:00:06.5]} 46... Kf7
{[%clk 0:00:25.6]} 47. Re7+ {[%clk 0:00:06.6]} 47... Kg6 {[%clk 0:00:25.6]} 48.
R7e6+ {[%clk 0:00:06.9]} 48... Kg7 {[%clk 0:00:24.2]} 49. Re7+ {[%clk
0:00:06.5]} 49... Kg6 {[%clk 0:00:24.3]} 1/2-1/2

[Event "*** Titled Tuesday Blitz"]
[Site "Chess.com"]
[Date "2020.04.14"]
[Round "4"]
[White "Gulkov_Igor"]
[Black "Arjun2002"]
[Result "1/2-1/2"]
[WhiteElo "2372"]
[BlackElo "2639"]
[TimeControl "180+1"]
[EndTime "10:40:06 PDT"]
[Termination "Game drawn by agreement"]

1. Nf3 {[%clk 0:03:00.9]} 1... d5 {[%clk 0:02:57.3]} 2. d4 {[%clk 0:03:00.4]}
2... Nf6 {[%clk 0:02:56.5]} 3. c4 {[%clk 0:03:00.6]} 3... c6 {[%clk 0:02:56.8]}
4. Nc3 {[%clk 0:02:58.9]} 4... e6 {[%clk 0:02:56]} 5. Bg5 {[%clk 0:02:57.7]}
5... h6 {[%clk 0:02:55.9]} 6. Bxf6 {[%clk 0:02:57.4]} 6... Qxf6 {[%clk
0:02:56.8]} 7. e3 {[%clk 0:02:57.7]} 7... g6 {[%clk 0:02:57.3]} 8. Rc1 {[%clk
0:02:57.6]} 8... Nd7 {[%clk 0:02:56.9]} 9. Bd3 {[%clk 0:02:57.6]} 9... Bg7
{[%clk 0:02:56.3]} 10. O-O {[%clk 0:02:57.5]} 10... O-O {[%clk 0:02:56.2]} 11.
e4 {[%clk 0:02:57]} 11... dxc4 {[%clk 0:02:55.7]} 12. Bxc4 {[%clk 0:02:54.5]}
12... e5 {[%clk 0:02:56.1]} 13. d5 {[%clk 0:02:54.4]} 13... Nb6 {[%clk
0:02:56.6]} 14. dxc6 {[%clk 0:02:54.1]} 14... bxc6 {[%clk 0:02:54.1]} 15. Be2
{[%clk 0:02:43.9]} 15... Bg4 {[%clk 0:02:54.1]} 16. h3 {[%clk 0:02:39.7]} 16...
Bxf3 {[%clk 0:02:53.1]} 17. Bxf3 {[%clk 0:02:39.3]} 17... Rfd8 {[%clk
0:02:53.7]} 18. Qc2 {[%clk 0:02:38.2]} 18... h5 {[%clk 0:02:52.9]} 19. Rcd1
{[%clk 0:02:36.7]} 19... Bh6 {[%clk 0:02:48.7]} 20. Rxd8+ {[%clk 0:02:28.5]}
20... Rxd8 {[%clk 0:02:48.4]} 21. Rd1 {[%clk 0:02:28.5]} 21... Rd4 {[%clk
0:02:44.8]} 22. Ne2 {[%clk 0:02:07.7]} 22... Rxd1+ {[%clk 0:02:42.9]} 23. Qxd1
{[%clk 0:02:07.3]} 23... Qe6 {[%clk 0:02:43.1]} 24. b3 {[%clk 0:02:04.7]} 24...
Qe7 {[%clk 0:02:41.4]} 25. Qc2 {[%clk 0:02:02.7]} 25... Qb4 {[%clk 0:02:40.6]}
26. Qc3 {[%clk 0:01:48.4]} 26... Qd6 {[%clk 0:02:38]} 27. Qc2 {[%clk 0:01:45.7]}
27... Nd7 {[%clk 0:02:36]} 28. h4 {[%clk 0:01:39]} 28... Nc5 {[%clk 0:02:35.3]}
29. g3 {[%clk 0:01:35.1]} 29... Ne6 {[%clk 0:02:34.9]} 30. Kg2 {[%clk
0:01:33.3]} 30... Bd2 {[%clk 0:02:31.9]} 31. Qc4 {[%clk 0:01:31.2]} 31... Ba5
{[%clk 0:02:28.7]} 32. g4 {[%clk 0:01:22.7]} 32... hxg4 {[%clk 0:02:24.2]} 33.
Bxg4 {[%clk 0:01:22.7]} 33... Ng7 {[%clk 0:02:17.7]} 34. Ng3 {[%clk 0:01:13.3]}
34... Bb6 {[%clk 0:02:16.1]} 35. h5 {[%clk 0:01:09.2]} 35... Qf6 {[%clk
0:02:12.3]} 36. Qe2 {[%clk 0:01:06.6]} 36... gxh5 {[%clk 0:02:10.6]} 37. Nxh5
{[%clk 0:01:06.4]} 37... Nxh5 {[%clk 0:02:10.2]} 38. Bxh5 {[%clk 0:01:06.7]}
38... Kf8 {[%clk 0:02:02.7]} 39. Qf3 {[%clk 0:01:02.6]} 39... Qg5+ {[%clk
0:02:01.8]} 40. Kf1 {[%clk 0:00:59.9]} 40... f6 {[%clk 0:01:56.9]} 41. Qf5
{[%clk 0:00:56.1]} 41... Qh4 {[%clk 0:01:43.2]} 42. Kg2 {[%clk 0:00:52.1]} 42...
Bd4 {[%clk 0:01:36.2]} 43. Be2 {[%clk 0:00:45.7]} 43... Ke7 {[%clk 0:01:31.4]}
44. Bc4 {[%clk 0:00:45.4]} 44... Kd8 {[%clk 0:01:26.1]} 45. a4 {[%clk
0:00:40.9]} 45... Kc7 {[%clk 0:01:25.2]} 46. a5 {[%clk 0:00:38.1]} 46... Bc5
{[%clk 0:01:16.5]} 47. Ba6 {[%clk 0:00:32]} 47... Kd6 {[%clk 0:01:06.9]} 48. Bc4
{[%clk 0:00:28]} 48... Kc7 {[%clk 0:01:03.1]} 49. Ba6 {[%clk 0:00:27.1]} 49...
Kd6 {[%clk 0:01:02.6]} 50. Bc4 {[%clk 0:00:26.8]} 50... Qg5+ {[%clk 0:00:26.6]}
51. Qxg5 {[%clk 0:00:25.3]} 51... fxg5 {[%clk 0:00:27.5]} 52. a6 {[%clk
0:00:24]} 52... Bd4 {[%clk 0:00:27.2]} 53. f3 {[%clk 0:00:24.2]} 53... Be3
{[%clk 0:00:27.1]} 54. Kh3 {[%clk 0:00:24.6]} 54... Kc5 {[%clk 0:00:27.4]} 55.
Kg4 {[%clk 0:00:24.4]} 1/2-1/2

[Event "*** Titled Tuesday Blitz"]
[Site "Chess.com"]
[Date "2020.04.14"]
[Round "4"]
[White "DonPreuss"]
[Black "JacekDubiel"]
[Result "0-1"]
[WhiteElo "2171"]
[BlackElo "2421"]
[TimeControl "180+1"]
[EndTime "10:40:06 PDT"]
[Termination "JacekDubiel won by resignation"]

1. d4 {[%clk 0:03:00.9]} 1... Nf6 {[%clk 0:02:59.9]} 2. Nc3 {[%clk 0:03:00.3]}
2... d5 {[%clk 0:02:59.4]} 3. e4 {[%clk 0:03:00.4]} 3... Nxe4 {[%clk 0:02:59.7]}
4. Nxe4 {[%clk 0:03:00.1]} 4... dxe4 {[%clk 0:03:00.6]} 5. Bc4 {[%clk
0:03:00.4]} 5... Bf5 {[%clk 0:02:58.3]} 6. c3 {[%clk 0:03:00.1]} 6... e6 {[%clk
0:02:53.4]} 7. Ne2 {[%clk 0:02:51.6]} 7... Bd6 {[%clk 0:02:50.6]} 8. O-O {[%clk
0:02:49.5]} 8... O-O {[%clk 0:02:49]} 9. Ng3 {[%clk 0:02:47.9]} 9... Bxg3 {[%clk
0:02:44.6]} 10. fxg3 {[%clk 0:02:27.5]} 10... Nd7 {[%clk 0:02:44.1]} 11. g4
{[%clk 0:02:14.4]} 11... Bg6 {[%clk 0:02:44.2]} 12. g5 {[%clk 0:02:14.8]} 12...
c5 {[%clk 0:02:28]} 13. Be3 {[%clk 0:01:59.5]} 13... cxd4 {[%clk 0:02:19.9]} 14.
cxd4 {[%clk 0:01:45.9]} 14... Nb6 {[%clk 0:02:18.3]} 15. Bb3 {[%clk 0:01:45.1]}
15... Nd5 {[%clk 0:02:18.5]} 16. Qe1 {[%clk 0:01:28.2]} 16... Rc8 {[%clk
0:01:59.8]} 17. g4 {[%clk 0:01:21.9]} 17... Rc6 {[%clk 0:01:20.2]} 18. h4 {[%clk
0:01:20.3]} 18... Nxe3 {[%clk 0:01:20.5]} 19. Qxe3 {[%clk 0:01:18.4]} 19... f6
{[%clk 0:01:21.1]} 20. h5 {[%clk 0:01:11]} 20... Bf7 {[%clk 0:01:21]} 21. h6
{[%clk 0:00:36.9]} 21... fxg5 {[%clk 0:01:11.8]} 22. hxg7 {[%clk 0:00:36.4]}
22... Kxg7 {[%clk 0:01:12.3]} 23. Kg2 {[%clk 0:00:30.6]} 23... Bg6 {[%clk
0:01:10.4]} 24. Rxf8 {[%clk 0:00:26.6]} 24... Kxf8 {[%clk 0:01:06]} 25. Rf1+
{[%clk 0:00:27.5]} 25... Kg7 {[%clk 0:01:05.9]} 26. d5 {[%clk 0:00:20.6]} 26...
exd5 {[%clk 0:00:55.2]} 27. Qd4+ {[%clk 0:00:20.6]} 27... Rf6 {[%clk 0:00:55.5]}
28. Bxd5 {[%clk 0:00:18.8]} 28... e3 {[%clk 0:00:55.3]} 29. Rxf6 {[%clk
0:00:16.8]} 29... Qxf6 {[%clk 0:00:55.4]} 30. Qxf6+ {[%clk 0:00:17.5]} 30...
Kxf6 {[%clk 0:00:56.3]} 31. Kf3 {[%clk 0:00:18]} 31... b6 {[%clk 0:00:47.8]} 32.
Kxe3 {[%clk 0:00:17.5]} 32... Bf7 {[%clk 0:00:48.1]} 33. Be4 {[%clk 0:00:17.1]}
33... Bxa2 {[%clk 0:00:46.3]} 34. Bxh7 {[%clk 0:00:16.7]} 34... Ke5 {[%clk
0:00:46.8]} 35. Bf5 {[%clk 0:00:16.2]} 35... Be6 {[%clk 0:00:46]} 36. Bd3 {[%clk
0:00:08.3]} 36... Bxg4 {[%clk 0:00:45.5]} 37. Ba6 {[%clk 0:00:07.6]} 37... Be6
{[%clk 0:00:44.6]} 38. b4 {[%clk 0:00:07]} 38... Bd5 {[%clk 0:00:42.9]} 39. Kd3
{[%clk 0:00:07.2]} 39... g4 {[%clk 0:00:42.4]} 40. Ke3 {[%clk 0:00:05.8]} 40...
g3 {[%clk 0:00:42.1]} 41. Bc8 {[%clk 0:00:04.3]} 41... g2 {[%clk 0:00:36.5]} 42.
Kf2 {[%clk 0:00:04.5]} 42... Kd4 {[%clk 0:00:36.9]} 43. Bd7 {[%clk 0:00:03.3]}
43... Kc3 {[%clk 0:00:31.2]} 44. b5 {[%clk 0:00:03.2]} 44... Kb4 {[%clk
0:00:31.5]} 45. Kg1 {[%clk 0:00:03]} 45... Kc5 {[%clk 0:00:31.8]} 46. Kf2 {[%clk
0:00:02.2]} 46... Bc4 {[%clk 0:00:32.1]} 47. Kxg2 {[%clk 0:00:02]} 47... Bxb5
{[%clk 0:00:33]} 48. Bc8 {[%clk 0:00:02.6]} 48... a5 {[%clk 0:00:30.3]} 49. Kf2
{[%clk 0:00:03.5]} 49... a4 {[%clk 0:00:29.9]} 50. Ke1 {[%clk 0:00:03.5]} 50...
a3 {[%clk 0:00:29.2]} 51. Kd2 {[%clk 0:00:04.4]} 51... a2 {[%clk 0:00:28.7]} 52.
Be6 {[%clk 0:00:05.1]} 52... a1=Q {[%clk 0:00:28.9]} 0-1

[Event "*** Titled Tuesday Blitz"]
[Site "Chess.com"]
[Date "2020.04.14"]
[Round "4"]
[White "yawnpawn"]
[Black "Hangar-18"]
[Result "0-1"]
[WhiteElo "1740"]
[BlackElo "2192"]
[TimeControl "180+1"]
[EndTime "10:40:08 PDT"]
[Termination "Hangar-18 won on time"]

1. e4 {[%clk 0:03:00.9]} 1... e6 {[%clk 0:03:00.9]} 2. d4 {[%clk 0:02:59]} 2...
c5 {[%clk 0:03:00.7]} 3. c3 {[%clk 0:02:53.3]} 3... Nf6 {[%clk 0:02:59.9]} 4. e5
{[%clk 0:02:50.6]} 4... Nd5 {[%clk 0:03:00.3]} 5. Nf3 {[%clk 0:02:43.7]} 5...
cxd4 {[%clk 0:02:59.8]} 6. cxd4 {[%clk 0:02:43.6]} 6... d6 {[%clk 0:03:00.4]} 7.
Bb5+ {[%clk 0:02:32.8]} 7... Nc6 {[%clk 0:02:57.8]} 8. O-O {[%clk 0:02:30.4]}
8... Be7 {[%clk 0:02:57.4]} 9. exd6 {[%clk 0:02:20.7]} 9... Qxd6 {[%clk
0:02:53.6]} 10. Nc3 {[%clk 0:02:20.1]} 10... O-O {[%clk 0:02:53.6]} 11. Ne4
{[%clk 0:02:11.2]} 11... Qd8 {[%clk 0:02:52.3]} 12. Ng3 {[%clk 0:02:09]} 12...
a6 {[%clk 0:02:35.8]} 13. Ba4 {[%clk 0:01:54.5]} 13... Bf6 {[%clk 0:02:34.8]}
14. Bxc6 {[%clk 0:01:44]} 14... bxc6 {[%clk 0:02:33.3]} 15. Ne5 {[%clk 0:01:44]}
15... c5 {[%clk 0:02:31.1]} 16. f4 {[%clk 0:01:34.5]} 16... Bb7 {[%clk
0:02:23.5]} 17. dxc5 {[%clk 0:01:24.5]} 17... Qa5 {[%clk 0:02:23.8]} 18. Kh1
{[%clk 0:01:20.9]} 18... Rfd8 {[%clk 0:02:22.8]} 19. Ng4 {[%clk 0:01:04.2]}
19... Bh4 {[%clk 0:02:14]} 20. Qb3 {[%clk 0:00:51.4]} 20... Rab8 {[%clk
0:02:03.5]} 21. f5 {[%clk 0:00:44.3]} 21... Nf6 {[%clk 0:01:53.6]} 22. Qc4
{[%clk 0:00:30.2]} 22... Bd5 {[%clk 0:01:46.6]} 23. Nh6+ {[%clk 0:00:24.4]}
23... gxh6 {[%clk 0:01:15.8]} 24. Qxh4 {[%clk 0:00:23.4]} 24... Ne8 {[%clk
0:00:26.8]} 25. fxe6 {[%clk 0:00:15.4]} 25... Bxe6 {[%clk 0:00:22.8]} 26. Bxh6
{[%clk 0:00:12.5]} 26... Qxc5 {[%clk 0:00:17.8]} 27. Nh5 {[%clk 0:00:10.7]}
27... Rd4 {[%clk 0:00:13.3]} 28. Nf6+ {[%clk 0:00:07.6]} 28... Kh8 {[%clk
0:00:07.8]} 29. Qg3 {[%clk 0:00:07.2]} 29... Qd6 {[%clk 0:00:02.4]} 30. Nxe8
{[%clk 0:00:04.7]} 30... Qxg3 {[%clk 0:00:01.9]} 31. hxg3 {[%clk 0:00:01.7]}
31... Rxe8 {[%clk 0:00:02.6]} 0-1